bitfinex/quotes_ETHUSD_20220106
["timestamp","ask_amount","ask_price","bid_price","bid_amount"]
[1641479892570,3.62228705,3415.3,3415.2,2.28486557]
[1641479892771,1.351,3415.3,3415.2,2.28486557]
[1641479892974,0.351,3415.3,3415.2,2.28486557]
[1641479894976,0.73306076,3415.4,3415.2,2.28486557]
[1641479895377,0.00086076,3415.4,3415.3,11.25113685]
[1641479895583,1.11885664,3415.9,3415.4,13.49361428]
[1641479895584,0.83535664,3415.9,3415.4,13.49361428]
[1641479895782,1.0035554,3416.1,3415.4,13.49361428]
[1641479895783,1.0035554,3416.1,3415.6,1.22076397]
[1641479896182,0.00113684,3415.9,3415.6,1.22076397]
[1641479896617,0.00341054,3416.3,3415.6,1.22076397]
[1641479896918,1.49180885,3416.4,3416.2,1.07057202]
[1641479897316,0.00341054,3416.3,3416.2,1.07057202]
[1641479897715,0.00341054,3416.3,3415.7,1.4637807]
[1641479897915,0.00341054,3416.3,3415.7,3.746941]
[1641479897916,0.73198,3416.2,3415.7,3.746941]
[1641479898115,0.73482211,3416.2,3415.7,3.746941]
[1641479898317,0.00227369,3416.1,3415.7,3.746941]
[1641479898718,0.00170527,3416.0,3415.8,1.192531]
[1641479899116,0.73198,3416.2,3415.8,3.4756913]
[1641479899117,0.63311684,3416.2,3415.8,3.4756913]
[1641479899318,0.73191,3416.5,3415.8,3.4756913]
[1641479899520,0.00113685,3416.1,3415.8,3.4756913]
[1641479899720,0.00200913,3416.1,3415.9,1.40418111]
[1641479899919,0.00200913,3416.1,3415.9,3.68734141]
[1641479900365,0.00200913,3416.1,3415.9,4.41924931]
[1641479900766,0.00200913,3416.1,3416.0,8.6331603]
[1641479900967,0.00200913,3416.1,3416.0,2.2831603]
[1641479902078,0.00200913,3416.1,3416.0,17.74323506]
[1641479902271,0.00200913,3416.1,3416.0,18.04323506]
[1641479902869,0.00200913,3416.1,3416.0,16.74323506]
[1641479903071,0.00200913,3416.1,3416.0,16.74715553]
[1641479903270,0.00200913,3416.1,3416.0,19.40629052]
[1641479903670,0.00200913,3416.1,3416.0,8.15629052]
[1641479904734,0.00200913,3416.1,3416.0,6.01423803]
[1641479904931,5.20200913,3416.1,3416.0,5.91423803]
[1641479905133,0.00200913,3416.1,3416.0,5.91423803]
[1641479905535,0.00200913,3416.1,3416.0,2.18708077]
[1641479906034,3.70200913,3416.1,3416.0,2.18708077]
[1641479906635,4.43416913,3416.1,3416.0,2.18708077]
[1641479907035,7.88416913,3416.1,3416.0,2.18708077]
[1641479907238,4.43416913,3416.1,3416.0,2.18708077]
[1641479907593,5.43416913,3416.1,3416.0,2.18708077]
[1641479907778,0.73416913,3416.1,3416.0,2.18708077]
[1641479908079,0.00200913,3416.1,3416.0,2.18708077]
[1641479909081,0.00200913,3416.1,3416.0,3.25732806]
[1641479910281,0.00200913,3416.1,3416.0,2.18708077]
[1641479913423,1.95454236,3416.1,3416.0,2.18708077]
[1641479914423,2.30554236,3416.1,3416.0,2.18708077]
[1641479914825,10.35554236,3416.1,3416.0,2.18708077]
[1641479915072,19.58554236,3416.1,3416.0,2.18708077]
[1641479915571,20.58554236,3416.1,3416.0,2.18708077]
[1641479915767,21.58909776,3416.1,3416.0,2.18708077]
[1641479916168,21.58909776,3416.1,3416.0,2.13708077]
[1641479916768,3.30909776,3416.1,3416.0,2.13708077]
[1641479917871,5.60554236,3416.1,3416.0,2.13708077]
[1641479918271,6.60554236,3416.1,3416.0,2.13708077]
[1641479918916,6.60554236,3416.1,3415.5,0.00113685]
[1641479918917,0.73228,3415.8,3415.5,0.00113685]
[1641479919116,3.99379196,3415.7,3415.5,0.00113685]
[1641479919314,26.63309985,3415.6,3415.4,0.00284212]
[1641479919513,14.91119346,3415.5,3415.4,0.00284212]
[1641479919714,34.07340363,3415.5,3415.4,0.00284212]
[1641479919915,14.48321017,3415.5,3415.4,0.00284212]
[1641479920115,15.21560017,3415.5,3415.4,0.00284212]
[1641479920318,3.96560017,3415.5,3415.4,0.00284212]
[1641479920515,2.96560017,3415.5,3415.4,0.00284212]
[1641479920717,2.96560017,3415.5,3414.8,0.00625266]
[1641479921017,2.96640105,3415.5,3414.8,0.00625266]
[1641479921219,2.96640105,3415.5,3415.2,1.99469356]
[1641479921414,0.7322,3415.4,3415.2,0.7322]
[1641479921615,0.7322,3415.4,3415.3,0.00341054]
[1641479922016,0.73228,3415.3,3414.9,0.00568423]
[1641479922216,0.73228,3415.3,3414.9,1.07593152]
[1641479922416,0.73228,3415.3,3414.9,2.42662877]
[1641479922664,0.73228,3415.3,3415.0,0.00511581]
[1641479922868,0.73227,3415.3,3415.0,1.46946581]
[1641479923068,0.35180088,3415.5,3415.0,1.46946581]
[1641479923266,0.00080088,3415.5,3415.1,0.00454739]
[1641479923664,0.00080088,3415.5,3415.1,0.73663379]
[1641479924067,0.00080088,3415.5,3415.3,1.17978085]
[1641479924466,0.00080088,3415.5,3415.4,0.00284212]
[1641479925468,0.73293088,3415.5,3415.4,0.00284212]
[1641479927117,0.00080088,3415.5,3415.4,0.00284212]
[1641479928019,0.00080088,3415.5,3415.3,0.00341054]
[1641479928821,0.00080088,3415.5,3415.4,1.00097254]
[1641479929217,0.00080088,3415.5,3415.4,1.00381466]
[1641479929617,4.60080088,3415.5,3415.4,0.00284212]
[1641479930084,23.7155116,3415.5,3415.3,0.00341054]
[1641479930269,6.4355116,3415.5,3415.3,0.00341054]
[1641479930470,9.64212059,3415.5,3414.9,0.00568423]
[1641479930672,0.73231,3415.2,3414.9,0.00568423]
[1641479931568,3.19654257,3415.1,3414.8,0.00625266]
[1641479931769,3.19654257,3415.1,3414.5,1.07024729]
[1641479931770,0.73241,3414.9,3414.7,0.00682108]
[1641479931973,0.73241,3414.9,3414.6,0.0073895]
[1641479931974,0.351,3414.8,3414.6,0.0073895]
[1641479932170,0.42218739,3414.8,3414.6,1.07763679]
[1641479932573,0.42218739,3414.8,3414.7,0.00682108]
[1641479932769,2.09567486,3414.8,3414.7,0.00682108]
[1641479933571,2.02448747,3414.8,3414.4,0.00852635]
[1641479934023,0.73239,3414.7,3414.4,0.00852635]
[1641479934220,0.351,3414.6,3414.4,0.00852635]
[1641479935624,1.7359454,3414.7,3414.4,0.00852635]
[1641479936423,0.73239,3414.7,3414.4,1.07877364]
[1641479936823,0.73239,3414.7,3414.5,0.00795793]
[1641479938675,0.73239,3414.7,3414.4,0.00852635]
[1641479939074,0.73239,3414.7,3414.5,0.73229]
[1641479939476,1.11897607,3415.1,3414.6,1.75626978]
[1641479939876,1.11897607,3415.1,3415.0,1.18903279]
[1641479940278,1.7792718,3415.3,3415.0,1.1941486]
[1641479940477,1.11897607,3415.4,3415.0,1.1941486]
[1641479940679,1.85115607,3415.4,3415.1,0.00454739]
[1641479941082,0.73218,3415.4,3415.1,1.75342767]
[1641479941523,17.28,3415.3,3415.2,0.00397896]
[1641479941724,0.73218,3415.4,3415.2,1.75285924]
[1641479941927,1.8155,3415.4,3415.2,1.75285924]
[1641479942126,14.35001722,3415.3,3415.2,1.74888028]
[1641479942526,16.46899329,3415.3,3415.2,0.00397896]
[1641479942827,10.15,3415.2,3414.5,1.07024729]
[1641479943025,17.631,3415.1,3414.6,0.00341054]
[1641479943226,0.73244,3414.8,3414.6,0.00341054]
[1641479943730,8.44985203,3414.7,3414.6,0.00341054]
[1641479944126,9.44985203,3414.7,3414.4,0.00454739]
[1641479944326,0.73246,3414.6,3414.4,0.00454739]
[1641479944828,0.73246,3414.6,3414.2,0.00568424]
[1641479945064,2.19732,3414.6,3414.2,0.00568424]
[1641479945564,0.7323,3414.7,3414.2,3.19099164]
[1641479945764,1.47943268,3414.7,3414.2,3.19099164]
[1641479945966,1.47943268,3414.7,3414.4,0.01293174]
[1641479945967,0.74723268,3414.7,3414.4,0.01293174]
[1641479946164,1.11909441,3414.9,3414.5,11.25]
[1641479946368,1.11909441,3414.9,3414.5,11.25397897]
[1641479946566,0.73214,3415.4,3414.6,2.11493636]
[1641479946968,0.73214,3415.4,3415.2,1.27191455]
[1641479947166,1.11909441,3415.5,3415.2,1.27191455]
[1641479947366,1.11909441,3415.5,3415.2,2.00403455]
[1641479947567,0.00113684,3415.4,3415.2,2.00403455]
[1641479948367,0.00113684,3415.4,3415.2,0.73212]
[1641479948816,0.00113684,3415.4,3415.3,0.00392131]
[1641479949024,0.00113684,3415.4,3415.3,14.41684971]
[1641479949221,0.00113684,3415.4,3415.3,11.25392131]
[1641479949417,0.00113684,3415.4,3415.3,12.67432895]
[1641479949719,1.11909441,3415.9,3415.5,0.7319733]
[1641479950019,0.0022737,3415.8,3415.6,0.73199]
[1641479950417,0.00170528,3415.7,3415.6,0.73199]
[1641479950628,0.00170528,3415.7,3415.6,0.3]
[1641479951020,0.00170528,3415.7,3415.6,10.91847502]
[1641479951637,1.49180885,3416.6,3415.7,11.25]
[1641479951821,2.20946799,3416.9,3416.4,0.01239993]
[1641479951822,0.12087684,3416.9,3416.4,0.01239993]
[1641479952119,0.351,3418.4,3416.5,13.3224539]
[1641479952120,0.12087684,3417.1,3416.5,13.3224539]
[1641479952322,7.684e-05,3417.1,3416.7,0.73163]
[1641479952574,4.96922784,3418.3,3418.1,1.3219]
[1641479952974,4.96922784,3418.3,3418.1,2.05338]
[1641479952975,0.00341054,3418.2,3418.1,2.05338]
[1641479953177,4.96922784,3418.3,3418.2,11.25]
[1641479953375,5.03300237,3418.7,3418.2,11.25]
[1641479953574,0.00118631,3418.2,3418.1,1.6219]
[1641479953975,0.00118631,3418.2,3418.1,1.3219]
[1641479954194,0.00118631,3418.2,3418.1,1.32581805]
[1641479955376,0.00118631,3418.2,3418.1,12.57581805]
[1641479955676,0.0022737,3418.6,3418.1,12.57581805]
[1641479955881,6.17,3419.2,3418.3,11.25]
[1641479956078,6.17,3419.2,3418.6,0.73107]
[1641479956320,2.38652675,3420.2,3419.2,11.25]
[1641479956622,6.17,3420.1,3420.0,11.25]
[1641479956827,1.84190648,3420.4,3420.0,7.5]
[1641479957020,0.00568424,3420.1,3420.0,12.669]
[1641479957221,0.00568424,3420.1,3420.0,14.61274749]
[1641479957421,6.8475225,3421.1,3420.1,11.25]
[1641479957627,6.8475225,3421.1,3421.0,12.64382879]
[1641479957822,22.25469746,3422.5,3421.0,12.64382879]
[1641479958024,22.25469746,3422.5,3422.4,1.14034849]
[1641479958224,22.25469746,3422.5,3422.4,1.15279259]
[1641479958421,22.25469746,3422.5,3422.4,11.80279259]
[1641479958622,2.0,3423.0,3422.5,11.25]
[1641479958823,2.0,3423.0,3422.4,0.3124441]
[1641479959022,0.01591585,3422.9,3422.4,0.3124441]
[1641479959424,0.70134743,3423.0,3422.4,0.3124441]
[1641479959623,1.00349065,3422.8,3422.5,0.0056182]
[1641479960088,1.00349065,3422.8,3422.6,0.00113685]
[1641479960876,11.25,3422.7,3422.1,0.25]
[1641479961076,4.54306069,3422.6,3422.1,0.25]
[1641479961278,4.54306069,3422.6,3422.2,0.00227369]
[1641479961279,3.61424808,3422.6,3422.2,0.00227369]
[1641479961677,1.07118739,3422.5,3422.2,0.00227369]
[1641479961874,3.46024579,3422.4,3422.2,0.00227369]
[1641479962084,12.25,3422.3,3422.2,0.00227369]
[1641479962375,11.32118739,3422.3,3422.2,0.00227369]
[1641479962576,12.27118739,3422.3,3422.2,0.00227369]
[1641479962777,0.07118739,3422.3,3422.2,0.00227369]
[1641479963580,3.72224425,3422.7,3422.2,0.00227369]
[1641479963822,0.6775225,3423.1,3422.3,11.25]
[1641479964022,0.6775225,3423.1,3422.3,11.5266]
[1641479964023,0.00113685,3422.8,3422.3,11.5266]
[1641479964222,0.00113685,3422.8,3422.6,1.46075]
[1641479964624,0.00113685,3422.8,3422.7,0.3]
[1641479965020,2.01560588,3423.1,3422.7,11.55]
[1641479965221,2.01560588,3423.1,3422.7,0.31224017]
[1641479965421,0.04174935,3423.7,3422.7,0.31224017]
[1641479965422,0.00113685,3423.0,3422.7,0.31224017]
[1641479965626,0.04174935,3423.7,3423.1,0.73027]
[1641479966023,0.00341054,3423.6,3423.1,1.03027]
[1641479966224,0.04174935,3423.7,3423.1,1.03027]
[1641479966225,4.935e-05,3423.7,3423.5,0.0125441]
[1641479966726,0.02,3425.0,3423.6,11.25]
[1641479966926,0.02,3425.0,3424.3,1.79539564]
[1641479967128,0.00625266,3424.7,3424.3,1.79539564]
[1641479967324,0.00625266,3424.7,3424.4,0.3]
[1641479967566,0.00568423,3424.6,3424.0,0.25]
[1641479967769,0.00568423,3424.6,3424.1,0.73003]
[1641479967965,1.29457353,3425.0,3424.1,0.73003]
[1641479967966,0.00511581,3424.5,3424.1,0.73003]
[1641479968368,0.00454739,3424.4,3422.8,1.0]
[1641479968667,1.01447382,3423.4,3423.1,0.25]
[1641479968869,0.00397896,3424.3,3423.1,0.25]
[1641479968870,0.07516635,3424.3,3423.1,0.25]
[1641479969075,0.00397896,3424.3,3423.6,0.73026]
[1641479969267,0.00341054,3424.2,3423.6,0.73026]
[1641479969673,0.00284212,3424.1,3423.6,0.73026]
[1641479970166,1.25320053,3424.2,3423.6,1.03026]
[1641479970167,0.00227369,3424.0,3423.6,1.03026]
[1641479970566,0.00170527,3423.9,3423.6,1.03026]
[1641479970968,0.00113685,3423.8,3423.6,1.03026]
[1641479971169,1.25320053,3424.2,3423.6,1.03026]
[1641479971621,1.8689875,3424.0,3423.6,0.73026]
[1641479972224,0.00170527,3424.1,3423.6,0.73026]
[1641479972622,0.02,3425.0,3423.6,0.73026]
[1641479972921,1.29435575,3424.5,3424.1,0.73012]
[1641479973320,2.10197187,3424.2,3424.0,1.46023]
[1641479973720,2.10197187,3424.2,3423.9,0.25]
[1641479974121,2.10197187,3424.2,3424.0,2.8]
[1641479974826,9.35159304,3424.1,3424.0,2.8]
[1641479975074,11.25,3424.0,3423.9,0.25]
[1641479976771,0.00159304,3424.1,3423.9,0.25]
[1641479977575,0.00159304,3424.1,3423.9,2.73034733]
[1641479977773,0.0022737,3424.4,3424.2,1.86499082]
[1641479977973,0.0022737,3424.4,3423.9,3.03034733]
[1641479978174,0.00170527,3424.3,3423.9,2.73034733]
[1641479978574,1.29435575,3424.5,3424.0,2.48034733]
[1641479978575,0.00113685,3424.2,3424.0,2.48034733]
[1641479979024,0.0022737,3424.4,3424.0,2.48034733]
[1641479979223,1.69672874,3424.3,3424.0,3.86109113]
[1641479979424,3.48486801,3424.2,3424.0,3.86109113]
[1641479979623,3.48486801,3424.2,3424.0,2.21179113]
[1641479979624,11.601,3424.1,3424.0,2.21179113]
[1641479980024,11.67218739,3424.1,3424.0,1.3807438]
[1641479980329,11.601,3424.1,3423.9,0.25]
[1641479980525,1.3807,3423.5,3423.3,5.498e-05]
[1641479980827,11.25,3423.2,3422.6,0.07777463]
[1641479981025,0.351,3423.1,3422.6,0.07777463]
[1641479981225,0.351,3423.1,3422.8,3.2509454]
[1641479981624,0.01259414,3423.4,3422.9,0.00454739]
[1641479981625,3.21242831,3423.4,3422.9,0.00454739]
[1641479981823,1.00297996,3423.4,3422.9,0.00454739]
[1641479982581,1.3807,3423.5,3422.7,3.5169683]
[1641479982777,1.3807,3423.5,3422.4,0.0073895]
[1641479982978,1.3807,3423.5,3422.8,0.00511581]
[1641479983176,1.60336612,3423.1,3422.5,3.2509454]
[1641479983374,1.60336612,3423.1,3422.8,1.46076]
[1641479983775,1.60336612,3423.1,3422.9,0.00454739]
[1641479983976,1.3807,3423.5,3422.9,0.00454739]
[1641479984174,1.3807,3423.5,3422.9,0.73042]
[1641479984576,1.3807,3423.5,3423.0,0.00397896]
[1641479984776,2.64149561,3423.5,3423.0,0.00397896]
[1641479985177,1.3807,3423.5,3423.0,0.00397896]
[1641479985378,1.3807,3423.5,3423.0,0.30397896]
[1641479985581,1.38200222,3423.5,3423.0,0.30397896]
[1641479985777,1.38200222,3423.5,3423.1,0.00341054]
[1641479985979,1.38200222,3423.5,3423.2,0.73033]
[1641479986178,1.38200222,3423.5,3423.1,1.46408054]
[1641479986425,1.98439928,3423.4,3423.3,0.00227369]
[1641479986628,1.98439928,3423.4,3423.2,0.00284211]
[1641479987426,8.93394453,3423.3,3423.2,0.00284211]
[1641479987626,8.93394453,3423.3,3423.1,0.00341054]
[1641479987828,8.93394453,3423.3,3422.6,1.46086]
[1641479987829,8.93394453,3423.3,3422.8,0.00511581]
[1641479988232,8.93394453,3423.3,3422.3,0.00795793]
[1641479988826,3.142759,3422.4,3422.3,0.00795793]
[1641479989027,7.6,3423.3,3422.3,0.00795793]
[1641479989427,1.38200222,3423.5,3422.6,0.73055]
[1641479989831,1.38200222,3423.5,3422.7,0.3]
[1641479990070,1.38200222,3423.5,3422.6,0.73055]
[1641479990268,1.37572924,3423.0,3422.8,0.00511581]
[1641479990873,1.37572924,3423.0,3422.3,0.30795793]
[1641479991071,1.37572924,3423.0,3421.9,3.38914537]
[1641479991072,11.37906193,3422.4,3421.9,3.38914537]
[1641479991271,1.82906193,3422.4,3421.9,0.3]
[1641479991471,1.14373458,3422.1,3422.0,0.0096632]
[1641479991871,1.14373458,3422.1,3421.8,3.2509454]
[1641479991872,1.14373458,3422.1,3421.9,0.01023162]
[1641479992275,1.82906193,3422.4,3421.9,0.01023162]
[1641479993073,1.77906193,3422.4,3421.9,0.01023162]
[1641479993274,1.3173072,3422.1,3421.9,0.01023162]
[1641479993675,1.3173072,3422.1,3421.7,0.01136847]
[1641479994136,1.72771606,3421.8,3421.7,1.05035222]
[1641479994336,0.351,3422.6,3421.7,1.05035222]
[1641479994536,0.351,3422.6,3422.0,0.73066]
[1641479994937,0.351,3422.6,3422.1,0.00909477]
[1641479995137,0.351,3423.3,3422.1,1.47022477]
[1641479995338,3.2261851,3423.1,3422.1,1.47022477]
[1641479995540,2.15826091,3423.1,3422.2,0.00852635]
[1641479995740,2.15826091,3423.1,3422.6,0.73052]
[1641479996143,2.15826091,3423.1,3422.7,0.00568423]
[1641479997245,1.0872573,3423.0,3422.7,0.00568423]
[1641479997440,1.08849553,3423.0,3422.4,0.0073895]
[1641479997869,1.08849553,3423.0,3422.3,1.03898375]
[1641479998070,1.08849553,3423.0,3422.4,0.0073895]
[1641479998971,2.02062706,3422.5,3422.4,0.0073895]
[1641479999370,1.08849553,3423.0,3422.2,0.00852635]
[1641479999771,1.08849553,3423.0,3422.5,2.48095207]
[1641480000173,0.00123823,3423.0,3422.6,0.00625266]
[1641480000771,0.00123823,3423.0,3422.4,0.0073895]
[1641480000974,0.00123823,3423.0,3422.4,0.01962641]
[1641480001172,0.00123823,3423.0,3422.6,1.17217218]
[1641480001430,0.00123823,3423.0,3422.6,0.73054]
[1641480001631,0.00123823,3423.0,3422.7,0.00568423]
[1641480002726,0.00123823,3423.0,3422.8,2.48095207]
[1641480002928,0.00123823,3423.0,3422.9,10.94215006]
[1641480003128,0.00123823,3423.0,3422.9,9.70500231]
[1641480003328,0.0029435,3423.0,3422.9,13.39759532]
[1641480003531,0.0029435,3423.0,3422.9,8.88898375]
[1641480003732,1.3807,3423.5,3423.0,8.45]
[1641480003930,1.3807,3423.5,3423.2,2.1908725]
[1641480004127,0.00227369,3423.4,3423.2,2.1908725]
[1641480004329,0.00227369,3423.4,3423.2,0.7303]
[1641480004528,0.00170527,3423.3,3423.1,1.46059]
[1641480004729,0.7303,3423.1,3422.9,2.48095207]
[1641480005177,11.601,3423.0,3422.8,1.03129545]
[1641480005378,11.98066,3422.9,3422.8,0.98789545]
[1641480005588,2.11954626,3422.9,3422.8,0.98789545]
[1641480005777,7.03066,3422.9,3422.8,0.9890323]
[1641480005980,7.1123889,3422.9,3422.8,0.00113685]
[1641480006377,7.1123889,3422.9,3422.4,0.00341054]
[1641480006581,7.1123889,3422.9,3421.9,0.00625266]
[1641480006780,0.0817289,3422.8,3421.9,0.00625266]
[1641480007477,0.0817289,3422.5,3421.9,0.00625266]
[1641480007677,0.0817289,3422.5,3421.8,0.00682108]
[1641480008279,0.0817289,3422.5,3421.8,1.38552607]
[1641480008678,0.0817289,3422.5,3421.9,0.00625266]
[1641480009140,0.0817289,3422.5,3421.2,2.0625909]
[1641480009141,11.3317289,3422.3,3421.2,2.0625909]
[1641480009336,0.0817289,3421.4,3421.2,2.0625909]
[1641480009535,1.27389943,3421.5,3421.2,2.0625909]
[1641480009536,11.6827289,3421.3,3421.2,2.0625909]
[1641480009935,31.69279166,3421.3,3421.2,2.06656986]
[1641480010139,15.14380166,3421.3,3421.2,2.06656986]
[1641480010338,15.14380166,3421.3,3421.2,0.00397896]
[1641480010741,15.14380166,3421.3,3420.5,0.00795793]
[1641480011137,0.0817289,3421.1,3420.5,0.00795793]
[1641480011341,0.0817289,3420.8,3420.5,0.00795793]
[1641480011539,11.2317289,3420.6,3420.5,0.00795793]
[1641480012037,0.0817289,3421.0,3420.2,0.0096632]
[1641480012237,0.0817289,3420.6,3420.2,0.0096632]
[1641480012677,0.5,3421.1,3420.2,0.0096632]
[1641480012678,0.0817289,3420.4,3420.2,0.0096632]
[1641480013076,0.351,3420.3,3420.1,0.01023162]
[1641480013276,7.5817289,3420.2,3420.1,0.01023162]
[1641480013477,1.90361502,3420.2,3420.1,0.01023162]
[1641480013676,8.50361502,3420.2,3420.1,0.01023162]
[1641480014077,8.50361502,3420.2,3419.5,4.22214149]
[1641480014078,0.0817289,3420.0,3419.5,2.75997149]
[1641480014280,0.0817289,3419.8,3419.5,2.75997149]
[1641480014478,0.0817289,3419.8,3418.6,2.0]
[1641480014479,11.3317289,3419.6,3419.4,2.75997149]
[1641480014677,11.6827289,3419.5,3419.4,2.75997149]
[1641480014879,14.83522928,3419.5,3419.4,2.75997149]
[1641480015078,32.11522928,3419.5,3419.4,2.75997149]
[1641480015277,11.25,3419.4,3418.9,6.9714664]
[1641480015477,11.3317289,3419.0,3418.9,6.9714664]
[1641480015678,11.3317289,3419.0,3418.9,3.2509454]
[1641480015877,11.3317289,3419.0,3418.7,2.86650551]
[1641480016323,11.3317289,3418.8,3418.7,2.86650551]
[1641480016524,15.84699558,3418.8,3418.6,2.0]
[1641480016725,20.91442514,3418.7,3418.6,2.0]
[1641480016927,1.12228079,3418.2,3418.1,0.6775225]
[1641480017126,14.14178363,3418.2,3418.1,0.6775225]
[1641480017926,0.0817289,3418.2,3418.1,0.6775225]
[1641480018723,17.3617289,3418.2,3418.1,0.6775225]
[1641480018924,0.0817289,3418.2,3418.1,0.2775225]
[1641480019125,0.0817289,3418.2,3418.1,1.67917029]
[1641480019627,0.351,3418.3,3418.1,1.67917029]
[1641480019628,0.0817289,3418.3,3418.1,6.77054284]
[1641480019828,0.0817289,3418.3,3418.2,8.31521704]
[1641480020072,0.0817289,3418.3,3418.2,1.07601709]
[1641480020269,0.0817289,3418.3,3418.2,0.01080005]
[1641480020675,2.89e-05,3418.3,3418.2,11.26080005]
[1641480020869,1.49013665,3419.5,3418.3,11.28622753]
[1641480021076,0.07779559,3419.7,3419.4,11.26282767]
[1641480021270,1.49013665,3420.1,3419.4,11.56282767]
[1641480021472,1.49013665,3420.1,3419.5,0.00341054]
[1641480021870,1.96712344,3419.9,3419.5,2.42195137]
[1641480022071,1.23875044,3420.3,3419.7,0.7310606]
[1641480022278,0.00397896,3420.8,3419.9,1.46212]
[1641480022479,0.00397896,3420.8,3419.9,0.73106]
[1641480022671,1.49013665,3421.2,3419.9,0.73106]
[1641480022672,0.00341054,3420.7,3419.9,0.73106]
[1641480023072,0.00284212,3420.6,3420.1,2.15069547]
[1641480023273,0.00284212,3420.6,3420.2,1.27311096]
[1641480023474,1.11699253,3421.0,3420.1,2.45069547]
[1641480023675,1.11699253,3421.0,3420.7,0.7309032]
[1641480023920,0.00170527,3420.9,3420.7,0.7309032]
[1641480024321,0.00113684,3420.8,3420.7,0.7309032]
[1641480024721,0.00113684,3420.8,3420.7,0.73091]
[1641480025121,0.00113684,3420.8,3420.7,1.03091]
[1641480026523,0.00113684,3420.8,3420.7,1.03482501]
[1641480027870,1.14540705,3421.3,3420.7,1.03482501]
[1641480028071,1.14540705,3421.3,3420.9,0.3]
[1641480028271,0.0022737,3421.2,3420.7,0.73482501]
[1641480028670,0.00170527,3421.1,3420.7,0.73482501]
[1641480028872,2.19461575,3421.1,3420.7,0.73482501]
[1641480029073,0.00113685,3421.0,3420.7,0.73482501]
[1641480029874,0.00113685,3421.0,3420.9,0.3]
[1641480031532,1.27389943,3421.5,3421.1,0.73082]
[1641480031934,0.00227369,3421.4,3421.2,0.3]
[1641480032333,1.27389943,3421.5,3421.2,0.3]
[1641480032334,0.00170527,3421.3,3421.2,0.3]
[1641480036176,0.00170527,3421.3,3421.0,1.76163]
[1641480036476,0.00113685,3421.2,3421.0,1.76163]
[1641480038078,0.00113685,3421.2,3421.0,0.3]
[1641480038379,0.00113685,3421.2,3420.9,1.46175]
[1641480038582,0.00113685,3421.2,3420.7,1.0437083]
[1641480039034,0.00113685,3421.2,3420.8,0.00113685]
[1641480039833,0.00113685,3421.2,3420.9,0.73093]
[1641480040035,1.8125871,3421.2,3420.9,0.73093]
[1641480041135,1.8125871,3421.2,3421.0,2.35338215]
[1641480041336,17.28,3421.1,3421.0,2.35338215]
[1641480041736,1.8125871,3421.2,3421.0,2.35338215]
[1641480041937,0.64408978,3421.1,3420.8,0.00113685]
[1641480042337,1.8134,3421.1,3420.8,0.00113685]
[1641480042574,0.351,3421.1,3420.8,0.00113685]
[1641480043176,1.11667702,3420.9,3420.8,0.00113685]
[1641480043976,1.49013665,3421.1,3420.8,0.00113685]
[1641480044176,1.8125871,3421.2,3420.8,0.00113685]
[1641480044376,2.5436271,3421.2,3420.8,0.00113685]
[1641480044577,17.28,3421.1,3420.8,0.00113685]
[1641480045178,2.5436271,3421.2,3420.8,0.00113685]
[1641480045380,5.9144847,3421.2,3420.8,0.00113685]
[1641480045880,17.28,3421.1,3420.8,0.00113685]
[1641480046082,18.04309329,3421.1,3420.8,0.00113685]
[1641480046725,18.04309329,3421.1,3420.7,0.00391501]
[1641480046726,11.25,3419.8,3419.5,1.69533965]
[1641480046923,0.01238407,3419.6,3419.4,1.69533965]
[1641480047122,1.09476407,3419.6,3419.4,1.69533965]
[1641480047320,23.18,3419.5,3419.4,3.965e-05]
[1641480047521,0.351,3419.5,3419.4,3.965e-05]
[1641480047721,12.601,3419.5,3419.4,0.00799758]
[1641480047920,11.601,3419.5,3419.4,0.00795793]
[1641480048122,12.601,3419.5,3419.4,0.00795793]
[1641480048331,29.881,3419.5,3419.1,0.0096632]
[1641480048621,29.881,3419.5,3418.1,5.4608514]
[1641480048622,18.01148,3419.3,3419.0,0.01023162]
[1641480048822,0.351,3419.2,3419.0,0.01023162]
[1641480049022,17.28,3419.1,3418.2,0.01477901]
[1641480049323,2.21511953,3419.0,3418.6,1.12270469]
[1641480049722,2.21511953,3419.0,3418.7,0.01193689]
[1641480050786,20.22664953,3419.0,3418.6,0.01250531]
[1641480050985,2.94664953,3419.0,3418.6,0.01250531]
[1641480051585,12.36644431,3418.7,3418.6,0.01250531]
[1641480051985,11.2,3418.7,3418.2,0.01477901]
[1641480052889,18.36253,3419.0,3418.2,0.01477901]
[1641480053693,1.95559166,3418.9,3418.2,0.01477901]
[1641480053927,17.28,3418.8,3418.2,0.01477901]
[1641480054134,3.29080627,3418.7,3418.2,0.01477901]
[1641480054327,17.28,3418.4,3418.2,0.01477901]
[1641480054629,11.2,3417.3,3417.1,3.38915618]
[1641480054827,11.2,3417.3,3416.7,4.65084547]
[1641480054828,1.61964382,3417.0,3416.7,4.65084547]
[1641480055031,0.351,3416.9,3416.7,4.65084547]
[1641480055228,2.23694475,3416.9,3416.7,4.65084547]
[1641480055629,2.23694475,3416.9,3416.3,4.4551956]
[1641480056030,2.23694475,3416.9,3416.3,4.46599564]
[1641480056429,0.351,3416.9,3416.8,1.2589566]
[1641480056630,1.61964382,3417.0,3416.8,1.2589566]
[1641480056832,0.87174382,3417.0,3416.8,1.26691453]
[1641480057031,0.7398571,3417.0,3416.9,0.0073895]
[1641480057893,0.7398571,3417.0,3416.8,1.5163461]
[1641480058397,0.7398571,3417.0,3416.8,0.1983461]
[1641480059395,0.7398571,3417.0,3416.1,7.36432]
[1641480059594,0.7398571,3417.0,3416.1,5.90087]
[1641480059798,0.7398571,3417.0,3416.2,0.00397897]
[1641480059993,8.9,3416.9,3416.1,5.85484897]
[1641480060495,1.79544452,3416.5,3416.2,1.4061101]
[1641480060893,0.00113685,3416.4,3416.2,1.4061101]
[1641480061329,0.7398571,3417.0,3416.2,1.4061101]
[1641480061330,0.00397897,3416.9,3416.2,1.4061101]
[1641480061527,17.29667099,3416.9,3416.2,1.4061101]
[1641480061727,0.00341054,3416.8,3416.2,1.4061101]
[1641480062128,0.00284212,3416.7,3416.2,1.4061101]
[1641480062427,0.0022737,3416.6,3416.2,3.43603228]
[1641480062631,0.0022737,3416.6,3416.2,3.73603228]
[1641480062831,0.00170527,3416.5,3416.2,3.73603228]
[1641480063328,0.00113685,3416.4,3416.2,3.73603228]
[1641480063730,0.00397897,3416.9,3416.2,1.7061101]
[1641480063927,0.00397897,3416.9,3416.8,1.08193448]
[1641480064131,0.7398571,3417.0,3416.2,1.76346]
[1641480064528,0.00341054,3416.8,3416.2,2.76346]
[1641480064728,0.00341054,3416.8,3416.4,1.46343]